fUST/lending_fUST_20240301
["ID","MTS","AMOUNT","RATE_DAILY","PERIOD"]
[315853177,1709225433454,-500.0,0.00020547,2]
[315853178,1709225433463,-1060.25,0.00020547,2]
[315853179,1709225433472,-500.0,0.00020547,2]
[315853180,1709225433485,-1060.25,0.00020547,2]
[315853181,1709225433495,-500.0,0.00020547,2]
[315853182,1709225433504,-1060.25,0.00020547,2]
[315853183,1709225433514,-500.0,0.00020547,2]
[315853184,1709225433523,-1060.25,0.00020547,2]
[315853185,1709225433533,-440.29479157,0.00020547,2]
[315853186,1709225433542,-1060.25,0.00020547,2]
[315853187,1709225433552,-252.69024057,0.00020547,2]
[315853188,1709225433561,-500.0,0.00020547,2]
[315853189,1709225433571,-500.0,0.00020547,2]
[315853190,1709225433580,-500.0,0.00020547,2]
[315853191,1709225433590,-500.0,0.00020547,2]
[315853192,1709225433600,-500.0,0.00020547,2]
[315853193,1709225433609,-421.97027241,0.00020547,2]
[315853194,1709225433619,-500.0,0.00020547,2]
[315853195,1709225433630,-500.0,0.00020547,2]
[315853196,1709225433640,-500.0,0.00020547,2]
[315853197,1709225433649,-500.0,0.00020547,2]
[315853198,1709225433659,-465.5,0.00020547,2]
[315853199,1709225433669,-500.0,0.00020547,2]
[315853200,1709225433679,-500.0,0.00020547,2]
[315853201,1709225433688,-500.0,0.00020547,2]
[315853202,1709225433698,-500.0,0.00020547,2]
[315853203,1709225433707,-500.0,0.00020547,2]
[315853204,1709225433717,-500.0,0.00020547,2]
[315853205,1709225433726,-500.0,0.00020547,2]
[315853206,1709225433741,-500.0,0.00020547,2]
[315853207,1709225433751,-500.0,0.00020547,2]
[315853208,1709225433761,-500.0,0.00020547,2]
[315853209,1709225433770,-500.0,0.00020547,2]
[315853210,1709225433780,-500.0,0.00020547,2]
[315853211,1709225433789,-500.0,0.00020547,2]
[315853212,1709225433799,-500.0,0.00020547,2]
[315853213,1709225433808,-265.96,0.00020547,2]
[315853214,1709225433818,-500.0,0.00020547,2]
[315853215,1709225433827,-500.0,0.00020547,2]
[315853216,1709225433836,-326.09020162,0.00020547,2]
[315853217,1709225433845,-3170.22,0.00020547,2]
[315853218,1709225433854,-3170.22,0.00020547,2]
[315853219,1709225433863,-3170.22,0.00020547,2]
[315853220,1709225433873,-3170.22,0.00020547,2]
[315853221,1709225433882,-3170.22,0.00020547,2]
[315853222,1709225433891,-3170.22,0.00020547,2]
[315853223,1709225433900,-3170.22,0.00020547,2]
[315853224,1709225433909,-3170.22,0.00020547,2]
[315853225,1709225433918,-3170.22,0.00020547,2]
[315853226,1709225433929,-3170.22,0.00020547,2]
[315853227,1709225433938,-500.0,0.00020547,2]
[315853228,1709225433950,-1019.69,0.00020547,2]
[315853229,1709225433959,-500.0,0.00020547,2]
[315853230,1709225433968,-1019.69,0.00020547,2]
[315853231,1709225433978,-1019.69,0.00020547,2]
[315853232,1709225433993,-1019.69,0.00020547,2]
[315853233,1709225434003,-500.0,0.00020547,2]
[315853234,1709225434012,-1019.69,0.00020547,2]
[315853235,1709225434022,-1019.69,0.00020547,2]
[315853236,1709225434032,-199.52,0.00020547,2]
[315853237,1709225434042,-1019.69,0.00020547,2]
[315853238,1709225434053,-1019.69,0.00020547,2]
[315853239,1709225434063,-1019.69,0.00020547,2]
[315853240,1709225434072,-1019.69,0.00020547,2]
[315853241,1709225434082,-1019.69,0.00020547,2]
[315853242,1709225434091,-1019.69,0.00020547,2]
[315853243,1709225434100,-1019.69,0.00020547,2]
[315853244,1709225434109,-1019.69,0.00020547,2]
[315853245,1709225434119,-1019.69,0.00020547,2]
[315853246,1709225434128,-1019.69,0.00020547,2]
[315853247,1709225434137,-1019.69,0.00020547,2]
[315853248,1709225434146,-1019.69,0.00020547,2]
[315853249,1709225434156,-5652.2,0.00020547,2]
[315853250,1709225434165,-5652.2,0.00020547,2]
[315853251,1709225434174,-5652.2,0.00020547,2]
[315853252,1709225434184,-5652.2,0.00020547,2]
[315853253,1709225434193,-5652.2,0.00020547,2]
[315853254,1709225434203,-500.0,0.00020547,2]
[315853255,1709225434212,-5652.2,0.00020547,2]
[315853256,1709225434222,-5652.2,0.00020547,2]
[315853257,1709225434234,-5652.2,0.00020547,2]
[315853258,1709225434244,-5652.2,0.00020547,2]
[315853259,1709225434254,-5652.2,0.00020547,2]
[315853260,1709225434264,-500.0,0.00020547,2]
[315853261,1709225434273,-500.0,0.00020547,2]
[315853262,1709225434282,-500.0,0.00020547,2]
[315853263,1709225434291,-500.0,0.00020547,2]
[315853264,1709225434300,-500.0,0.00020547,2]
[315853265,1709225434310,-500.0,0.00020547,2]
[315853266,1709225434319,-500.0,0.00020547,2]
[315853267,1709225434328,-500.0,0.00020547,2]
[315853268,1709225434337,-500.0,0.00020547,2]
[315853269,1709225434347,-500.0,0.00020547,2]
[315853270,1709225434356,-500.0,0.00020547,2]
[315853271,1709225434365,-500.0,0.00020547,2]
[315853272,1709225434375,-500.0,0.00020547,2]
[315853273,1709225434384,-500.0,0.00020547,2]
[315853274,1709225434393,-500.0,0.00020547,2]
[315853275,1709225434403,-500.0,0.00020547,2]
[315853276,1709225434412,-500.0,0.00020547,2]
[315853277,1709225434421,-500.0,0.00020547,2]
[315853278,1709225434513,-500.0,0.00020547,2]
[315853279,1709225434523,-500.0,0.00020547,2]
[315853280,1709225434532,-500.0,0.00020547,2]
[315853281,1709225434541,-500.0,0.00020547,2]
[315853282,1709225434550,-500.0,0.00020547,2]
[315853283,1709225434559,-500.0,0.00020547,2]
[315853284,1709225434568,-500.0,0.00020547,2]
[315853285,1709225434578,-500.0,0.00020547,2]
[315853286,1709225434587,-500.0,0.00020547,2]
[315853287,1709225434597,-158.56713679,0.00020547,2]
[315853288,1709225434606,-500.0,0.00020547,2]
[315853289,1709225434615,-500.0,0.00020547,2]
[315853290,1709225434625,-500.0,0.00020547,2]
[315853291,1709225434635,-500.0,0.00020547,2]
[315853292,1709225434644,-500.0,0.00020547,2]
[315853293,1709225434654,-500.0,0.00020547,2]
[315853294,1709225434663,-500.0,0.00020547,2]
[315853295,1709225434673,-500.0,0.00020547,2]
[315853296,1709225434682,-512.72,0.00020547,2]
[315853297,1709225434691,-501.12,0.00020547,2]
[315853298,1709225434701,-501.12,0.00020547,2]
[315853299,1709225434710,-501.12,0.00020547,2]
[315853300,1709225434720,-501.12,0.00020547,2]
[315853301,1709225434729,-501.12,0.00020547,2]
[315853302,1709225434743,-501.12,0.00020547,2]
[315853303,1709225434752,-500.0,0.00020547,2]
[315853304,1709225434761,-501.12,0.00020547,2]
[315853305,1709225434771,-500.0,0.00020547,2]
[315853306,1709225434781,-500.0,0.00020547,2]
[315853307,1709225434791,-501.12,0.00020547,2]
[315853308,1709225434800,-500.0,0.00020547,2]
[315853309,1709225434810,-501.12,0.00020547,2]
[315853310,1709225434820,-500.0,0.00020547,2]
[315853311,1709225434830,-501.12,0.00020547,2]
[315853312,1709225434839,-500.0,0.00020547,2]
[315853313,1709225434849,-500.0,0.00020547,2]
[315853314,1709225434858,-500.0,0.00020547,2]
[315853315,1709225434868,-500.0,0.00020547,2]
[315853316,1709225434878,-486.0753801,0.00020547,2]
[315853317,1709225434888,-500.0,0.00020547,2]
[315853318,1709225434897,-500.0,0.00020547,2]
[315853319,1709225434906,-500.0,0.00020547,2]
[315853320,1709225434916,-500.0,0.00020547,2]
[315853321,1709225434926,-411.30586833,0.00020547,2]
[315853322,1709225434935,-500.0,0.00020547,2]
[315853323,1709225434945,-500.0,0.00020547,2]
[315853324,1709225434956,-500.0,0.00020547,2]
[315853325,1709225434965,-500.0,0.00020547,2]
[315853326,1709225434976,-3019.54,0.00020547,2]
[315853327,1709225434990,-500.0,0.00020547,2]
[315853328,1709225434999,-3019.54,0.00020547,2]
[315853329,1709225435009,-500.0,0.00020547,2]
[315853330,1709225435019,-500.0,0.00020547,2]
[315853331,1709225435030,-3019.54,0.00020547,2]
[315853332,1709225435039,-500.0,0.00020547,2]
[315853333,1709225435049,-500.0,0.00020547,2]
[315853334,1709225435059,-3019.54,0.00020547,2]
[315853335,1709225435070,-500.0,0.00020547,2]
[315853336,1709225435080,-500.0,0.00020547,2]
[315853337,1709225435090,-3019.54,0.00020547,2]
[315853338,1709225435099,-500.0,0.00020547,2]
[315853339,1709225435109,-3019.54,0.00020547,2]
[315853340,1709225435119,-500.0,0.00020547,2]
[315853341,1709225435129,-500.0,0.00020547,2]
[315853342,1709225435138,-3019.54,0.00020547,2]
[315853343,1709225435147,-500.0,0.00020547,2]
[315853344,1709225435157,-500.0,0.00020547,2]
[315853345,1709225435166,-3019.54,0.00020547,2]
[315853346,1709225435175,-500.0,0.00020547,2]
[315853347,1709225435185,-500.0,0.00020547,2]
[315853348,1709225435195,-3019.54,0.00020547,2]
[315853349,1709225435205,-500.0,0.00020547,2]
[315853350,1709225435215,-500.0,0.00020547,2]
[315853351,1709225435224,-3019.54,0.00020547,2]
[315853352,1709225435237,-500.0,0.00020547,2]
[315853353,1709225435247,-500.0,0.00020547,2]
[315853354,1709225435256,-500.0,0.00020547,2]
[315853355,1709225435265,-500.0,0.00020547,2]
[315853356,1709225435274,-500.0,0.00020547,2]
[315853357,1709225435284,-500.0,0.00020547,2]
[315853358,1709225435293,-500.0,0.00020547,2]
[315853359,1709225435302,-500.0,0.00020547,2]
[315853360,1709225435312,-500.0,0.00020547,2]
[315853361,1709225435321,-500.0,0.00020547,2]
[315853362,1709225435331,-500.0,0.00020547,2]
[315853363,1709225435340,-500.0,0.00020547,2]
[315853364,1709225435349,-500.0,0.00020547,2]
[315853365,1709225435359,-500.0,0.00020547,2]
[315853366,1709225435368,-500.0,0.00020547,2]
[315853367,1709225435377,-1826.43,0.00020547,2]
[315853368,1709225435388,-1826.43,0.00020547,2]
[315853369,1709225435398,-1826.43,0.00020547,2]
[315853370,1709225435408,-1826.43,0.00020547,2]
[315853371,1709225435417,-1826.43,0.00020547,2]
[315853372,1709225435426,-1826.43,0.00020547,2]
[315853373,1709225435436,-1826.43,0.00020547,2]
[315853374,1709225435445,-1826.43,0.00020547,2]
[315853375,1709225435455,-1826.43,0.00020547,2]
[315853376,1709225435464,-1826.43,0.00020547,2]
[315853377,1709225435474,-1826.43,0.00020547,2]
[315853378,1709225435486,-1605.09,0.00020547,2]
[315853379,1709225435496,-500.0,0.00020547,2]
[315853380,1709225435505,-1605.09,0.00020547,2]
[315853381,1709225435515,-1605.09,0.00020547,2]
[315853382,1709225435525,-1605.09,0.00020547,2]
[315853383,1709225435534,-1605.09,0.00020547,2]
[315853384,1709225435543,-1605.09,0.00020547,2]
[315853385,1709225435552,-1605.09,0.00020547,2]
[315853386,1709225435561,-1605.09,0.00020547,2]
[315853387,1709225435571,-1605.09,0.00020547,2]
[315853388,1709225435580,-1605.09,0.00020547,2]
[315853389,1709225435590,-509.43,0.00020547,2]
[315853390,1709225435599,-509.43,0.00020547,2]
[315853391,1709225435609,-509.43,0.00020547,2]
[315853392,1709225435618,-509.43,0.00020547,2]
[315853393,1709225435627,-509.43,0.00020547,2]
[315853394,1709225435637,-509.43,0.00020547,2]
[315853395,1709225435646,-509.43,0.00020547,2]
[315853396,1709225435656,-509.43,0.00020547,2]
[315853397,1709225435670,-509.43,0.00020547,2]
[315853398,1709225435683,-509.43,0.00020547,2]
[315853399,1709225435697,-509.43,0.00020547,2]
[315853400,1709225435708,-500.0,0.00020547,2]
[315853401,1709225435721,-500.0,0.00020547,2]
[315853402,1709225435735,-500.0,0.00020547,2]
[315853403,1709225435745,-500.0,0.00020547,2]
[315853404,1709225435756,-435.16369902,0.00020547,2]
[315853405,1709225435768,-501.06552157,0.00020547,2]
[315853406,1709225435781,-500.0,0.00020547,2]
[315853407,1709225435793,-500.0,0.00020547,2]
[315853408,1709225435805,-500.0,0.00020547,2]
[315853409,1709225435817,-500.0,0.00020547,2]
[315853410,1709225435830,-500.0,0.00020547,2]
[315853411,1709225435842,-500.0,0.00020547,2]
[315853412,1709225435854,-192.39100481,0.00020547,2]
[315853413,1709225435865,-500.0,0.00020547,2]
[315853414,1709225435877,-500.0,0.00020547,2]
[315853415,1709225435888,-500.0,0.00020547,2]
[315853416,1709225435898,-392.78,0.00020547,2]
[315853417,1709225435908,-500.0,0.00020548,2]
[315853418,1709225435919,-3170.22,0.00020548,2]
[315853419,1709225435932,-500.0,0.00020548,2]
[315853420,1709225435943,-1531.0,0.0002055,2]
[315853421,1709225435956,-5652.2,0.0002067,2]
[315853422,1709225435968,-501.12,0.0002067,2]
[315853423,1709225435979,-1060.25,0.00020671,2]
[315853424,1709225435992,-1019.69,0.00020671,2]
[315853425,1709225436003,-384.44,0.00020671,2]
[315853426,1709225436015,-3019.54,0.00020671,2]
[315853427,1709225436027,-1605.09,0.00020671,2]
[315853428,1709225436039,-1000.0,0.00020683,2]
[315853429,1709225436049,-155.20864054,0.000207,2]
[315853430,1709225436059,-580.0,0.000207,2]
[315853431,1709225436069,-1000.0,0.0002082,2]
[315853432,1709225436081,-8144.06728302,0.00020851,2]
[315853433,1709225436093,-500.0,0.00020889,2]
[315853434,1709225436106,-500.0,0.00020889,2]
[315853435,1709225436117,-1826.43,0.00020889,2]
[315853436,1709225436130,-509.43,0.00020889,2]
[315853437,1709225436142,-7351.18587863,0.0002089,2]
[315853438,1709225436154,-500.0,0.00020895,2]
[315853439,1709225436165,-3170.22,0.00020895,2]
[315853440,1709225436175,-500.0,0.00020895,2]
[315853441,1709225436188,-5652.2,0.00020896,2]
[315853442,1709225436199,-501.12,0.00020896,2]
[315853443,1709225436211,-3019.54,0.00020896,2]
[315853444,1709225436222,-1605.09,0.00020896,2]
[315853445,1709225436235,-1060.25,0.00020897,2]
[315853446,1709225436246,-1060.25,0.00020897,2]
[315853447,1709225436259,-1060.25,0.00020897,2]
[315853448,1709225436270,-1060.25,0.00020897,2]
[315853449,1709225436282,-1060.39592653,0.00020897,2]
[315853450,1709225436294,-1019.69,0.00020897,2]
[315853451,1709225436306,-1019.69,0.00020897,2]
[315853452,1709225436319,-1019.69,0.00020897,2]
[315853453,1709225436332,-1019.69,0.00020897,2]
[315853454,1709225436342,-1019.91729729,0.00020897,2]
[315853455,1709225436352,-699.55614826,0.00020898,2]
[315853456,1709225436363,-699.55614822,0.00020898,2]
[315853457,1709225436373,-699.55614822,0.00020898,2]
[315853458,1709225436383,-699.55614822,0.00020899,2]
[315853459,1709225436395,-699.55614822,0.00020899,2]
[315853460,1709225436405,-699.55614822,0.00020899,2]
[315853461,1709225436417,-699.55614822,0.00020899,2]
[315853462,1709225436428,-699.55614822,0.000209,2]
[315853463,1709225436439,-699.55614822,0.000209,2]
[315853464,1709225436449,-1161.67508701,0.000209,2]
[315853465,1709225436461,-699.55614822,0.000209,2]
[315853466,1709225436473,-1000.0,0.00020956,2]
[315853467,1709225436487,-500.0,0.00020993,2]
[315853468,1709225436498,-3170.22,0.00020993,2]
[315853469,1709225436508,-500.0,0.00020993,2]
[315853470,1709225436518,-500.0,0.00020993,2]
[315853471,1709225436529,-366.0179928,0.00020993,2]
[315853472,1709225436540,-1826.43,0.00020993,2]
[315853473,1709225436550,-509.43,0.00020993,2]
[315853474,1709225436561,-501.12,0.00020994,2]
[315853475,1709225436572,-3019.54,0.00020994,2]
[315853476,1709225436584,-1605.09,0.00020994,2]
[315853477,1709225436596,-5652.2,0.00020995,2]
[315853478,1709225436607,-500.0,0.00020996,2]
[315853479,1709225436618,-3170.22,0.00020996,2]
[315853480,1709225436629,-501.12,0.00020996,2]
[315853481,1709225436640,-500.0,0.00020996,2]
[315853482,1709225436650,-3019.54,0.00020996,2]
[315853483,1709225436661,-500.0,0.00020996,2]
[315853484,1709225436672,-1826.43,0.00020996,2]
[315853485,1709225436682,-1605.09,0.00020996,2]
[315853486,1709225436693,-509.43,0.00020996,2]
[315853487,1709225436704,-500.0,0.00020997,2]
[315853488,1709225436715,-3170.22,0.00020997,2]
[315853489,1709225436725,-5652.2,0.00020997,2]
[315853490,1709225436738,-501.12,0.00020997,2]
[315853491,1709225436749,-500.0,0.00020997,2]
[315853492,1709225436761,-3019.54,0.00020997,2]
[315853493,1709225436772,-500.0,0.00020997,2]
[315853494,1709225436782,-1826.43,0.00020997,2]
[315853495,1709225436793,-1605.09,0.00020997,2]
[315853496,1709225436804,-509.43,0.00020997,2]
[315853497,1709225436814,-279.27129673,0.00020998,2]
[315853498,1709225436826,-623.38533298,0.00020998,2]
[315853499,1709225436836,-1473.46781706,0.00020998,2]
[315853500,1709225436847,-349.58820103,0.00020998,2]
[315853501,1709225436857,-719.59695589,0.00020998,2]
[315853502,1709225436868,-649.27585788,0.00020998,2]
[315853503,1709225436878,-155.16913436,0.00020998,2]
[315853504,1709225436888,-749.40400927,0.00020998,2]
[315853505,1709225436898,-703.08553243,0.00020998,2]
[315853506,1709225436909,-557.44319736,0.00020998,2]
[315853507,1709225436919,-202.86753091,0.00020998,2]
[315853508,1709225436929,-604.00859499,0.00020998,2]
[315853509,1709225436940,-3637.48552019,0.00020998,2]
[315853510,1709225436951,-206.33255284,0.00020998,2]
[315853511,1709225437058,-170.56406132,0.00020998,2]
[315853512,1709225437087,-342.43862379,0.00020998,2]
[315853513,1709225437098,-191.67747144,0.00020998,2]
[315853514,1709225437107,-334.65001782,0.00020998,2]
[315853515,1709225437116,-1103.80811997,0.00020998,2]
[315853516,1709225437126,-7313.03444251,0.00020998,2]
[315853517,1709225437135,-400.75162755,0.00020998,2]
[315853518,1709225437144,-155.69178995,0.00020998,2]
[315853519,1709225437153,-326.19267059,0.00020998,2]
[315853520,1709225437163,-1085.27869327,0.00020998,2]
[315853521,1709225437172,-235.24696332,0.00020998,2]
[315853522,1709225437180,-155.16292107,0.00020998,2]
[315853523,1709225437189,-155.32984339,0.00020998,2]
[315853524,1709225437198,-273.92034871,0.00020998,2]
[315853525,1709225437208,-155.19597403,0.00020998,2]
[315853526,1709225437218,-155.18622347,0.00020998,2]
[315853527,1709225437227,-500.0,0.00020998,2]
[315853528,1709225437239,-464.10643601,0.00020998,2]
[315853530,1709225437248,-3170.22,0.00020998,2]
[315853531,1709225437257,-3170.22,0.00020998,2]
[315853532,1709225437266,-5652.2,0.00020998,2]
[315853533,1709225437276,-5652.2,0.00020998,2]
[315853534,1709225437285,-5652.2,0.00020998,2]
[315853535,1709225437294,-328.62,0.00020998,2]
[315853536,1709225437303,-328.62,0.00020998,2]
[315853537,1709225437312,-328.62,0.00020998,2]
[315853538,1709225437321,-328.62,0.00020998,2]
[315853539,1709225437330,-328.62,0.00020998,2]
[315853540,1709225437339,-328.62,0.00020998,2]
[315853541,1709225437348,-328.62,0.00020998,2]
[315853542,1709225437356,-328.62,0.00020998,2]
[315853543,1709225437366,-328.62,0.00020998,2]
[315853544,1709225437375,-328.62,0.00020998,2]
[315853545,1709225437384,-501.12,0.00020998,2]
[315853546,1709225437393,-501.12,0.00020998,2]
[315853547,1709225437402,-500.0,0.00020998,2]
[315853548,1709225437411,-3019.54,0.00020998,2]
[315853549,1709225437420,-500.0,0.00020998,2]
[315853550,1709225437432,-3019.54,0.00020998,2]
[315853551,1709225437442,-500.0,0.00020998,2]
[315853552,1709225437451,-308.97685044,0.00020998,2]
[315853553,1709225437461,-1826.43,0.00020998,2]
[315853554,1709225437470,-1826.43,0.00020998,2]
[315853555,1709225437479,-1605.09,0.00020998,2]
[315853556,1709225437490,-1605.09,0.00020998,2]
[315853557,1709225437499,-509.43,0.00020998,2]
[315853558,1709225437508,-509.43,0.00020998,2]
[315853559,1709225437517,-3170.22,0.00020999,2]
[315853560,1709225437527,-3170.22,0.00020999,2]
[315853561,1709225437536,-3170.22,0.00020999,2]
[315853562,1709225437544,-3170.22,0.00020999,2]
[315853563,1709225437553,-3170.22,0.00020999,2]
[315853564,1709225437562,-3170.22,0.00020999,2]
[315853565,1709225437571,-1332.24951349,0.00020999,2]
[315853566,1709225437637,-500.0,0.00020547,2]
[315853567,1709225437647,-732.26226554,0.00020999,2]
[315853568,1709225437659,-495.6,0.00020999,2]
[315853594,1709225439684,-2262.72,0.0002008,3]
[315853596,1709225439694,-512.69152001,0.00020547,2]
[315853598,1709225439703,-210.28380948,0.00020547,2]
[315853600,1709225439712,-500.0,0.00020547,2]
[315853602,1709225439721,-152.54489802,0.00020547,2]
[315853604,1709225439730,-205.628,0.00020673,2]
[315853605,1709225439743,-610.25698952,0.00020999,2]
[315853607,1709225439753,-5652.2,0.00020999,2]
[315853609,1709225439762,-5652.2,0.00020999,2]
[315853611,1709225439772,-5652.2,0.00020999,2]
[315853613,1709225439781,-34.22286518,0.00020999,2]
[315853615,1709225439793,-2635.70423309,0.00020999,2]
[315853617,1709225439805,-2982.27290173,0.00020999,2]
[315853618,1709225439814,-5652.2,0.00020999,2]
[315853619,1709225439823,-5652.2,0.00020999,2]
[315853620,1709225439832,-5652.30282927,0.00020999,2]
[315853621,1709225439842,-501.12,0.00020999,2]
[315853622,1709225439851,-501.12,0.00020999,2]
[315853623,1709225439860,-501.12,0.00020999,2]
[315853624,1709225439870,-8.66703127,0.00020999,2]
[315853626,1709225439882,-492.45296873,0.00020999,2]
[315853628,1709225439891,-501.12,0.00020999,2]
[315853630,1709225439900,-1.82171042,0.00020999,2]
[315853654,1709225440839,-302.8671087,0.00020546,2]
[315853655,1709225440850,-197.1328913,0.00020546,2]
[315853656,1709225440860,-500.0,0.00020546,2]
[315853657,1709225440869,-499.29828958,0.00020999,2]
[315853658,1709225440879,-501.30570442,0.00020999,2]
[315853659,1709225440889,-1379.44080479,0.00020999,2]
[315853660,1709225440901,-1640.09919521,0.00020999,2]
[315853661,1709225440911,-409.01246702,0.00020999,2]
[315853662,1709225440920,-159.45814364,0.00020999,2]
[315853663,1709225440935,-2860.08185636,0.00020999,2]
[315853664,1709225440944,-3019.54,0.00020999,2]
[315853665,1709225440957,-3019.54,0.00020999,2]
[315853666,1709225440966,-1315.83814368,0.00020999,2]
[315853861,1709225442950,-1703.70185632,0.00020999,2]
[315853863,1709225442960,-3019.54,0.00020999,2]
[315853865,1709225442970,-2989.85746591,0.00020999,2]
[315853867,1709225442982,-29.76627719,0.00020999,2]
[315853869,1709225442994,-1826.43,0.00020999,2]
[315853871,1709225443003,-217.51091843,0.00020999,2]
[315853873,1709225443015,-1608.91908157,0.00020999,2]
[315853875,1709225443026,-89.13815429,0.00020999,2]
[315853877,1709225443036,-1251.08639269,0.00020999,2]
[315854430,1709225448672,-531.542036,0.0002099,3]
[315854432,1709225448683,-1145.16705967,0.0002099,3]
[315854434,1709225448694,-685.26602776,0.0002099,3]
[315858477,1709225680171,-162.15450539,0.00018798,2]
[315858478,1709225680199,-1338.09926385,0.00018895,2]
[315858479,1709225680225,-214.46734632,0.00018896,2]
[315858480,1709225680248,-39.1393114,0.00018897,2]
[315861176,1709226635351,-1562.10602718,0.0001815,2]
[315861224,1709226638080,-549.58459187,0.0001815,2]
[315861226,1709226638090,-155.08219356,0.0001815,2]
[315861227,1709226638098,-5444.70688033,0.0001815,2]
[315861228,1709226638107,-1605.71911662,0.00018151,2]
[315861229,1709226638117,-1153.01095768,0.00018151,2]
[315861230,1709226638129,-439.04510569,0.00018151,2]
[315861231,1709226638139,-1079.67786944,0.00018151,2]
[315861232,1709226638149,-155.08219356,0.00018151,2]
[315861233,1709226638158,-1863.33093334,0.00018151,2]
[315861234,1709226638168,-214.46734632,0.00018152,2]
[315861235,1709226638177,-616.89865132,0.00018152,2]
[315861236,1709226638186,-155.08064193,0.00018153,2]
[315861237,1709226638196,-6912.93495998,0.00018153,2]
[315861238,1709226638205,-154.87609912,0.00018191,2]
[315861239,1709226638217,-1007.14547134,0.00018292,2]
[315861256,1709226641045,-460.50746407,0.00018292,2]
[315861258,1709226641112,-1503.97140899,0.00018292,2]
[315861259,1709226641122,-206.125473,0.00018293,2]
[315861260,1709226641131,-985.75826294,0.000189,2]
[315861261,1709226641141,-242.53039643,0.00018966,2]
[315861262,1709226641150,-211.034385,0.00018968,2]
[315861263,1709226641162,-31.49601143,0.00018968,2]
[315861264,1709226641172,-586.46822023,0.00018973,2]
[315861265,1709226641182,-586.46822023,0.00018974,2]
[315861266,1709226641190,-242.53039643,0.00018979,2]
[315861267,1709226641200,-53.40164786,0.00018999,2]
[315861268,1709226641212,-533.06657237,0.00018999,2]
[315861269,1709226641223,-2919.68634991,0.00019,2]
[315861270,1709226641232,-3067.29961026,0.0001999,3]
[315861271,1709226641244,-1149.84038974,0.0001999,3]
[315861272,1709226641253,-8041.81,0.0001999,3]
[315861273,1709226641262,-6701.51,0.0001999,3]
[315861274,1709226641271,-155.0,0.0002,2]
[315861275,1709226641280,-151.61197063,0.0002,2]
[315861276,1709226641290,-954.94358971,0.0002,2]
[315861277,1709226641301,-3541.25831984,0.0002,2]
[315861323,1709226643068,-511.50785599,0.0002,2]
[315861324,1709226643082,-15927.00671365,0.0002,2]
[315861325,1709226643093,-1742.0,0.0002,2]
[315861326,1709226643104,-2917.9872015,0.0002,2]
[315861327,1709226643132,-705.58448431,0.0002,2]
[315861356,1709226648465,-2493.70676745,0.0002,2]
[315861357,1709226648477,-500.0,0.0002,2]
[315861358,1709226648489,-10706.00506755,0.0002,2]
[315861359,1709226648498,-238.50130044,0.0002,2]
[315861360,1709226648507,-350.23363953,0.00020093,2]
[315861361,1709226648515,-350.23363951,0.00020182,2]
[315861362,1709226648524,-5584.59,0.00020183,3]
[315861363,1709226648533,-153.0,0.00020192,2]
[315861364,1709226648542,-16379.69962646,0.00020193,5]
[315861365,1709226648554,-17225.06057275,0.00020193,5]
[315861366,1709226648563,-858.02285291,0.00020193,3]
[315861367,1709226648572,-438.04324596,0.00020193,3]
[315861368,1709226648581,-12476.93386936,0.00020193,5]
[315861369,1709226648591,-153.0,0.000202,2]
[315861370,1709226648602,-309.3042461,0.000202,2]